fUST/lending_fUST_20240727
["ID","MTS","AMOUNT","RATE_DAILY","PERIOD"]
[333348718,1722065442042,-1193.1,0.00013698,2]
[333348719,1722065442051,-1546.55,0.00013698,2]
[333348720,1722065442060,-500.0,0.00013698,2]
[333348721,1722065442070,-516.35547637,0.00013698,2]
[333348722,1722065442082,-500.0,0.00013698,2]
[333348723,1722065442092,-500.0,0.00013698,2]
[333348724,1722065442102,-500.0,0.00013698,2]
[333348725,1722065442114,-500.0,0.00013698,2]
[333348726,1722065442124,-5260.42,0.00013698,2]
[333348727,1722065442136,-500.0,0.00013698,2]
[333348728,1722065442146,-500.0,0.00013698,2]
[333348729,1722065442156,-1135.04,0.00013698,2]
[333348730,1722065442165,-500.0,0.00013698,2]
[333348731,1722065442175,-501.2016491,0.00013698,2]
[333348732,1722065442185,-2369.12,0.00013698,2]
[333348733,1722065442194,-532.79055912,0.00013698,2]
[333348734,1722065442204,-500.0,0.00013698,2]
[333348735,1722065442213,-586.35956034,0.00013698,2]
[333348736,1722065442223,-500.0,0.00013698,2]
[333348737,1722065442232,-500.0,0.00013698,2]
[333348738,1722065442242,-500.0,0.00013698,2]
[333348739,1722065442251,-1267.45,0.00013698,2]
[333348740,1722065442261,-500.0,0.00013698,2]
[333348741,1722065442270,-318.84560608,0.00013698,2]
[333348742,1722065442279,-500.0,0.00013698,2]
[333348743,1722065442289,-507.14903014,0.00013698,2]
[333348744,1722065442299,-2078.12,0.00013698,2]
[333348745,1722065442308,-506.27043396,0.00013698,2]
[333348746,1722065442317,-500.0,0.00013698,2]
[333348747,1722065442326,-500.0,0.00013698,2]
[333348748,1722065442335,-500.0,0.00013698,2]
[333348749,1722065442344,-500.0,0.00013698,2]
[333348750,1722065442357,-604.13,0.00013698,2]
[333348751,1722065442366,-500.0,0.00013698,2]
[333348752,1722065442375,-500.0,0.00013698,2]
[333348753,1722065442385,-500.0,0.00013698,2]
[333348754,1722065442395,-500.0,0.00013698,2]
[333348755,1722065442404,-502.01566386,0.00013698,2]
[333348756,1722065442413,-500.0,0.00013698,2]
[333348757,1722065442423,-500.0,0.00013698,2]
[333348758,1722065442433,-500.0,0.00013698,2]
[333348759,1722065442442,-500.0,0.00013698,2]
[333348760,1722065442451,-500.0,0.00013698,2]
[333348761,1722065442460,-500.0,0.00013698,2]
[333348762,1722065442469,-902.03,0.00013698,2]
[333348763,1722065442479,-5080.65923883,0.00013698,2]
[333348764,1722065443070,-4117.02076117,0.00013698,2]
[333348765,1722065443080,-500.0,0.00013698,2]
[333348766,1722065443090,-500.0,0.00013698,2]
[333348767,1722065443100,-500.0,0.00013698,2]
[333348768,1722065443110,-500.0,0.00013698,2]
[333348770,1722065443119,-500.0,0.00013698,2]
[333348772,1722065443128,-500.0,0.00013698,2]
[333348774,1722065443138,-500.0,0.00013698,2]
[333348776,1722065443148,-500.0,0.00013698,2]
[333348777,1722065443158,-500.0,0.00013698,2]
[333348778,1722065443167,-500.0,0.00013698,2]
[333348779,1722065443177,-503.45,0.00013698,2]
[333348780,1722065443186,-500.0,0.00013698,2]
[333348781,1722065443195,-500.0,0.00013698,2]
[333348782,1722065443205,-500.0,0.00013698,2]
[333348783,1722065443214,-715.52,0.00013698,2]
[333348784,1722065443224,-1646.77,0.00013698,2]
[333348785,1722065443234,-1254.97,0.00013698,2]
[333348786,1722065443243,-500.0,0.00013698,2]
[333348787,1722065443253,-342.52461219,0.00013698,2]
[333348788,1722065443264,-500.0,0.00013698,2]
[333348789,1722065443274,-601.05,0.00013698,2]
[333348790,1722065443283,-500.0,0.00013698,2]
[333348791,1722065443293,-500.0,0.00013698,2]
[333348792,1722065443302,-500.0,0.00013698,2]
[333348793,1722065443312,-500.0,0.00013698,2]
[333348794,1722065443323,-260.98265739,0.00013698,2]
[333348795,1722065443333,-2484.26,0.00013698,2]
[333348796,1722065443343,-500.0,0.00013698,2]
[333348797,1722065443355,-500.0,0.00013698,2]
[333348798,1722065443364,-534.01,0.00013698,2]
[333348799,1722065443374,-500.0,0.00013698,2]
[333348800,1722065443383,-868.42,0.00013698,2]
[333348801,1722065443393,-500.0,0.00013698,2]
[333348802,1722065443403,-500.0,0.00013698,2]
[333348803,1722065443412,-500.0,0.00013698,2]
[333348804,1722065443422,-560.36,0.00013698,2]
[333348805,1722065443433,-500.0,0.00013698,2]
[333348806,1722065443442,-500.0,0.00013698,2]
[333348807,1722065443451,-500.0,0.00013698,2]
[333348808,1722065443463,-500.0,0.00013698,2]
[333348809,1722065443473,-500.0,0.00013698,2]
[333348810,1722065443483,-500.0,0.00013698,2]
[333348811,1722065443492,-793.76,0.00013698,2]
[333348812,1722065443501,-500.0,0.00013698,2]
[333348813,1722065443515,-2078.59,0.00013698,2]
[333348814,1722065443525,-500.0,0.00013698,2]
[333348815,1722065443536,-500.0,0.00013698,2]
[333348816,1722065443545,-1830.12,0.00013698,2]
[333348817,1722065443554,-926.59,0.00013698,2]
[333348818,1722065443563,-726.79,0.00013698,2]
[333348819,1722065443573,-500.0,0.00013698,2]
[333348820,1722065443582,-500.0,0.00013698,2]
[333348821,1722065443591,-500.0,0.00013698,2]
[333348822,1722065443600,-685.06,0.00013698,2]
[333348823,1722065443609,-3273.26,0.00013698,2]
[333348825,1722065443619,-1086.93,0.00013698,2]
[333348826,1722065443629,-500.0,0.00013698,2]
[333348827,1722065443639,-762.36,0.00013698,2]
[333348828,1722065443649,-220.70281175,0.00013698,2]
[333348829,1722065443659,-500.0,0.00013698,2]
[333348830,1722065443668,-500.0,0.00013698,2]
[333348831,1722065443678,-1099.81,0.00013698,2]
[333348832,1722065443687,-500.0,0.00013698,2]
[333348833,1722065443697,-5966.97,0.00013698,2]
[333348834,1722065443707,-501.41004709,0.00013698,2]
[333348835,1722065443716,-500.0,0.00013698,2]
[333348836,1722065443727,-503.50938992,0.00013698,2]
[333348837,1722065443737,-500.0,0.00013698,2]
[333348838,1722065443749,-500.0,0.00013698,2]
[333348839,1722065443758,-2341.17,0.00013698,2]
[333348840,1722065443768,-500.0,0.00013698,2]
[333348841,1722065443777,-500.0,0.00013698,2]
[333348842,1722065443788,-1179.33,0.00013698,2]
[333348843,1722065443797,-1480.83,0.00013698,2]
[333348844,1722065443807,-500.0,0.00013698,2]
[333348845,1722065443817,-500.0,0.00013698,2]
[333348846,1722065443827,-500.0,0.00013698,2]
[333348847,1722065443836,-500.0,0.00013698,2]
[333348848,1722065443847,-500.0,0.00013698,2]
[333348849,1722065443856,-815.22,0.00013698,2]
[333348850,1722065443866,-955.75,0.00013698,2]
[333348851,1722065443875,-500.0,0.00013698,2]
[333348852,1722065443884,-500.0,0.00013698,2]
[333348853,1722065443894,-500.0,0.00013698,2]
[333348854,1722065443903,-500.0,0.00013698,2]
[333348855,1722065443913,-500.0,0.00013698,2]
[333348856,1722065443922,-1469.05,0.00013698,2]
[333348857,1722065443932,-500.0,0.00013698,2]
[333348858,1722065443941,-500.0,0.00013698,2]
[333348859,1722065443951,-500.0,0.00013698,2]
[333348860,1722065443960,-500.0,0.00013698,2]
[333348861,1722065443969,-500.0,0.00013698,2]
[333348862,1722065443978,-554.04,0.00013698,2]
[333348863,1722065443987,-500.0,0.00013698,2]
[333348864,1722065443997,-1217.52,0.00013698,2]
[333348865,1722065444007,-500.0,0.00013698,2]
[333348866,1722065444017,-500.0,0.00013698,2]
[333348867,1722065444027,-680.8,0.00013698,2]
[333348868,1722065444038,-500.0,0.00013698,2]
[333348869,1722065444047,-341.5981426,0.00013698,2]
[333348870,1722065444056,-500.0,0.00013698,2]
[333348871,1722065444066,-500.0,0.00013698,2]
[333348872,1722065444075,-500.0,0.00013698,2]
[333348873,1722065444084,-1022.99,0.00013698,2]
[333348874,1722065444095,-500.0,0.00013698,2]
[333348875,1722065444104,-500.0,0.00013698,2]
[333348876,1722065444113,-500.0,0.00013698,2]
[333348877,1722065444123,-1435.35,0.00013698,2]
[333348878,1722065444132,-500.0,0.00013698,2]
[333348879,1722065444141,-500.0,0.00013698,2]
[333348880,1722065444151,-500.0,0.00013698,2]
[333348881,1722065444160,-3269.71,0.00013698,2]
[333348882,1722065444170,-3269.71,0.00013698,2]
[333348883,1722065444179,-3269.71,0.00013698,2]
[333348884,1722065444188,-3269.71,0.00013698,2]
[333348885,1722065444198,-3269.71,0.00013698,2]
[333348886,1722065444207,-507.05657845,0.00013698,2]
[333348887,1722065444216,-3269.71,0.00013698,2]
[333348888,1722065444226,-3269.71,0.00013698,2]
[333348889,1722065444235,-3269.71,0.00013698,2]
[333348890,1722065444245,-3269.71,0.00013698,2]
[333348891,1722065444254,-3269.71,0.00013698,2]
[333348892,1722065444263,-500.0,0.00013698,2]
[333348893,1722065444273,-296.50574088,0.00013698,2]
[333348894,1722065445318,-502.6483452,0.00013698,2]
[333348895,1722065445593,-145.38401659,0.00013698,2]
[333348905,1722065446921,-333.3986771,0.00013698,2]
[333348907,1722065446933,-1991.77322023,0.00013698,2]
[333348909,1722065446943,-3269.71,0.00013698,2]
[333348911,1722065446952,-500.0,0.00013698,2]
[333348913,1722065446962,-24.64022764,0.00013698,2]
[333349046,1722065450817,200.0,0.0001,2]
[333349047,1722065462116,231.14251502,9.9e-05,2]
[333349050,1722065489917,402.87736137,9.999e-05,2]
[333349051,1722065493546,155.02279919,9.999e-05,2]
[333349052,1722065498321,154.69833824,9.999e-05,2]
[333349053,1722065512472,200.0,0.0001,2]
[333349054,1722065536847,732.8576936,9.999e-05,2]
[333349055,1722065587502,200.0,0.0001,2]
[333349056,1722065600234,535.20885866,9.999e-05,2]
[333349057,1722065606038,1657.64205404,9.999e-05,2]
[333349058,1722065606487,154.76010948,9.999e-05,2]
[333349059,1722065654686,200.0,0.0001,2]
[333349060,1722065656510,273.37336231,9.9e-05,2]
[333349061,1722065663204,154.71377951,9.999e-05,2]
[333349062,1722065664445,273.37336231,9.9e-05,2]
[333349063,1722065670373,210.65428147,9.999e-05,2]
[333349064,1722065673423,273.37336231,9.9e-05,2]
[333349065,1722065681211,273.37336231,9.9e-05,2]
[333349066,1722065689988,273.37336231,9.9e-05,2]
[333349067,1722065693846,279.58111569,9.999e-05,2]
[333349068,1722065698071,273.37336231,9.9e-05,2]
[333349069,1722065706848,273.37336231,9.9e-05,2]
[333349070,1722065710280,941.18343028,9.999e-05,2]
[333349071,1722065714752,273.37336231,9.9e-05,2]
[333349072,1722065722439,200.0,0.0001,2]
[333349073,1722065722978,273.37336231,9.9e-05,2]
[333349074,1722065731177,273.37336231,9.9e-05,2]
[333349075,1722065782454,200.0,0.0001,2]
[333349076,1722065787840,217.5531102,9.9e-05,2]
[333349077,1722065848478,200.0,0.0001,2]
[333349078,1722065912665,200.0,0.0001,2]
[333349079,1722065984161,200.0,0.0001,2]
[333349080,1722066040893,727.02832733,9.999e-05,2]
[333349081,1722066042480,200.0,0.0001,2]
[333349082,1722066047627,154.93298464,9.999e-05,2]
[333349084,1722066112531,200.0,0.0001,2]
[333349085,1722066121498,154.69833824,9.999e-05,2]
[333349087,1722066172374,200.0,0.0001,2]
[333349089,1722066204145,153.75022294,9.9e-05,2]
[333349090,1722066211975,273.37336231,9.9e-05,2]
[333349091,1722066220187,177.17659661,9.9e-05,2]
[333349092,1722066242578,200.0,0.0001,2]
[333349093,1722066302825,200.0,0.0001,2]
[333349094,1722066321413,206.24082542,9.999e-05,2]
[333349095,1722066372397,200.0,0.0001,2]
[333349096,1722066396708,319.54991411,9.999e-05,2]
[333349097,1722066425163,-300.0,0.00010755,2]
[333349098,1722066425184,-300.0,0.00010755,2]
[333349099,1722066425206,-698.46169418,0.00010756,2]
[333349100,1722066425235,-10097.02641936,0.00010756,2]
[333349101,1722066429298,154.91513865,0.0001,2]
[333349102,1722066437098,-1330.8181493,0.00010756,2]
[333349103,1722066442461,200.0,0.0001,2]
[333349104,1722066448144,1625.30319851,0.0001,2]
[333349105,1722066452450,9566.23980276,0.0001,2]
[333349106,1722066454574,166.90756549,0.0001,2]
[333349107,1722066505267,294.74233588,0.0001,2]
[333349108,1722066510339,155.54138296,0.0001,2]
[333349109,1722066513279,200.0,0.0001,2]
[333349110,1722066521053,3787.33366306,0.0001,2]
[333349111,1722066527176,154.92131227,0.0001,2]
[333349112,1722066550637,155.19557269,9.999e-05,2]
[333349113,1722066555085,-300.0,0.00010755,2]
[333349114,1722066555108,-12773.69373716,0.00010756,2]
[333349115,1722066555128,-455.6307467,0.00010827,2]
[333349116,1722066555150,-189.0691234,0.00010863,2]
[333349117,1722066555172,-285.32,0.00010959,2]
[333349118,1722066555193,-237.77,0.00010959,2]
[333349119,1722066555214,-198.14,0.00010959,2]
[333349120,1722066555236,-165.12,0.00010959,2]
[333349121,1722066555257,-825.62,0.00010959,2]
[333349122,1722066555277,-2375.090071,0.00010976,2]
[333349123,1722066555297,-250.0,0.00011172,2]
[333349124,1722066555318,-400.0,0.0001137,2]
[333349125,1722066555339,-250.0,0.00011593,2]
[333349126,1722066555360,-250.0,0.00011624,2]
[333349127,1722066555380,-250.0,0.00011656,2]
[333349128,1722066555401,-250.0,0.00011688,2]
[333349129,1722066555423,-250.0,0.0001172,2]
[333349130,1722066555445,-250.0,0.00011752,2]
[333349131,1722066555466,-250.0,0.00011783,2]
[333349132,1722066555486,-250.0,0.00011815,2]
[333349133,1722066555510,-361.0,0.00011831,2]
[333349134,1722066555534,-250.0,0.00011847,2]
[333349135,1722066555555,-250.0,0.00011879,2]
[333349136,1722066555575,-250.0,0.0001191,2]
[333349137,1722066555596,-250.0,0.00011942,2]
[333349138,1722066555619,-250.0,0.00011974,2]
[333349139,1722066555642,-250.0,0.00012006,2]
[333349140,1722066555664,-63.17076817,0.00012038,2]
[333349141,1722066558427,155.21705747,9.999e-05,2]
[333349142,1722066560900,40.78294253,9.999e-05,2]
[333349143,1722066560926,209.999062,9.999e-05,2]
[333349144,1722066562898,472.43520923,9.999e-05,2]
[333349145,1722066564659,288.3347294,9.999e-05,2]
[333349146,1722066564898,218.09499306,9.999e-05,2]
[333349148,1722066567155,-186.82923183,0.00012038,2]
[333349149,1722066567178,-250.0,0.00012069,2]
[333349150,1722066567201,-250.0,0.00012101,2]
[333349151,1722066567223,-1046.03717982,0.00012121,2]
[333349152,1722066567245,-814.21648288,0.00012121,2]
[333349153,1722066567267,-250.0,0.00012133,2]
[333349154,1722066567289,-250.0,0.00012165,2]
[333349155,1722066567310,-250.0,0.00012196,2]
[333349156,1722066583168,200.0,0.0001,2]
[333349157,1722066583226,51.06554514,0.0001137,2]
[333349158,1722066583247,269.50658035,0.0001137,2]
[333349240,1722066633079,-79.42787451,0.0001137,2]
[333349242,1722066633090,-288.23515322,0.0001212,2]
[333349244,1722066633100,-66.76636597,0.00012959,2]
[333349247,1722066633114,-86.23363403,0.00012959,2]
[333349249,1722066633124,-600.0,0.00013147,2]
[333349251,1722066633134,-206.7714858,0.0001326,2]
[333349253,1722066633146,-206.7714858,0.0001326,2]
[333349255,1722066633156,-206.619531,0.0001326,2]
[333349257,1722066633166,-192.017591,0.00013425,2]
[333349259,1722066633176,-2159.27952203,0.000135,2]
[333349261,1722066633186,-3668.60694012,0.00013532,2]
[333349263,1722066633197,-620.0281608,0.00013575,2]
[333349265,1722066633208,-636.06861696,0.00013598,2]
[333349267,1722066633218,-153.0,0.00013671,2]
[333349268,1722066633230,-355.25234924,0.00013698,2]
[333349270,1722066633241,-500.0,0.00013698,2]
[333349273,1722066633252,-500.0,0.00013698,2]
[333349275,1722066633262,-500.0,0.00013698,2]
[333349277,1722066633272,-500.0,0.00013698,2]
[333349279,1722066633283,-175.35,0.00013698,2]
[333349281,1722066633293,-500.0,0.00013698,2]
[333349283,1722066633303,-500.0,0.00013698,2]
[333349285,1722066633313,-501.53067688,0.00013698,2]
[333349287,1722066633324,-500.0,0.00013698,2]
[333349289,1722066633333,-500.0,0.00013698,2]
[333349291,1722066633344,-491.4600684,0.00013698,2]
[333349293,1722066633354,-500.0,0.00013698,2]
[333349295,1722066633364,-500.0,0.00013698,2]
[333349297,1722066633374,-500.0,0.00013698,2]
[333349299,1722066633384,-500.0,0.00013698,2]
[333349301,1722066633394,-506.31176499,0.00013698,2]
[333349303,1722066633403,-500.0,0.00013698,2]
[333349305,1722066633414,-500.0,0.00013698,2]
[333349307,1722066633424,-744.89,0.00013698,2]
[333349309,1722066633434,-500.0,0.00013698,2]
[333349311,1722066633443,-500.0,0.00013698,2]
[333349313,1722066633455,-500.0,0.00013698,2]
[333349315,1722066633465,-500.0,0.00013698,2]
[333349317,1722066633475,-500.0,0.00013698,2]
[333349319,1722066633485,-536.28139843,0.00013698,2]
[333349321,1722066633496,-500.0,0.00013698,2]
[333349323,1722066633506,-500.0,0.00013698,2]
[333349325,1722066633516,-1350.48,0.00013698,2]
[333349327,1722066633527,-500.0,0.00013698,2]
[333349329,1722066633536,-654.83,0.00013698,2]
[333349331,1722066633546,-535.16757182,0.00013698,2]
[333349334,1722066633556,-500.0,0.00013698,2]
[333349336,1722066633566,-500.0,0.00013698,2]
[333349338,1722066633576,-507.76007917,0.00013698,2]
[333349340,1722066633586,-640.32333384,0.00013698,2]
[333349342,1722066633596,-500.0,0.00013698,2]
[333349344,1722066633605,-500.0,0.00013698,2]
[333349346,1722066633615,-531.28106189,0.00013698,2]
[333349348,1722066633624,-500.0,0.00013698,2]
[333349350,1722066633634,-500.0,0.00013698,2]
[333349352,1722066633644,-500.0,0.00013698,2]
[333349354,1722066633654,-500.0,0.00013698,2]
[333349356,1722066633664,-500.0,0.00013698,2]
[333349358,1722066633674,-500.0,0.00013698,2]
[333349360,1722066633683,-500.0,0.00013698,2]
[333349362,1722066633693,-500.0,0.00013698,2]
[333349364,1722066633703,-500.0,0.00013698,2]
[333349366,1722066633713,-500.0,0.00013698,2]
[333349368,1722066633723,-500.0,0.00013698,2]
[333349370,1722066633732,-500.0,0.00013698,2]
[333349372,1722066633742,-500.0,0.00013698,2]
[333349374,1722066633752,-500.0,0.00013698,2]
[333349376,1722066633763,-500.0,0.00013698,2]
[333349378,1722066633773,-500.0,0.00013698,2]
[333349380,1722066633783,-500.0,0.00013698,2]
[333349382,1722066633793,-500.0,0.00013698,2]
[333349408,1722066634032,-500.0,0.00013698,2]
[333349411,1722066634044,-500.0,0.00013698,2]
[333349413,1722066634055,-500.0,0.00013698,2]
[333349415,1722066634065,-505.61158073,0.00013698,2]
[333349417,1722066634075,-500.0,0.00013698,2]
[333349419,1722066634084,-500.0,0.00013698,2]
[333349421,1722066634094,-500.0,0.00013698,2]
[333349423,1722066634104,-500.0,0.00013698,2]
[333349425,1722066634114,-500.0,0.00013698,2]
[333349427,1722066634125,-502.90765232,0.00013698,2]
[333349429,1722066634135,-500.0,0.00013698,2]
[333349431,1722066634145,-662.58,0.00013698,2]
[333349433,1722066634155,-500.0,0.00013698,2]
[333349435,1722066634164,-500.0,0.00013698,2]
[333349437,1722066634174,-500.0,0.00013698,2]
[333349439,1722066634185,-500.0,0.00013698,2]
[333349441,1722066634195,-500.0,0.00013698,2]
[333349443,1722066634205,-500.0,0.00013698,2]
[333349445,1722066634214,-500.0,0.00013698,2]
[333349447,1722066634225,-725.15,0.00013698,2]
[333349449,1722066634234,-502.52562604,0.00013698,2]
[333349451,1722066634244,-500.0,0.00013698,2]
[333349454,1722066634254,-500.0,0.00013698,2]
[333349456,1722066634263,-500.0,0.00013698,2]
[333349458,1722066634273,-730.71,0.00013698,2]
[333349460,1722066634284,-348.61308731,0.00013698,2]
[333349462,1722066634293,-877.36,0.00013698,2]
[333349464,1722066634303,-500.0,0.00013698,2]
[333349466,1722066634313,-500.0,0.00013698,2]
[333349468,1722066634322,-500.0,0.00013698,2]
[333349470,1722066634332,-503.2947434,0.00013698,2]
[333349472,1722066634341,-500.0,0.00013698,2]
[333349474,1722066634351,-500.0,0.00013698,2]
[333349476,1722066634360,-500.0,0.00013698,2]
[333349478,1722066634369,-500.0,0.00013698,2]
[333349480,1722066634378,-501.69428418,0.00013698,2]
[333349482,1722066634387,-500.0,0.00013698,2]
[333349484,1722066634397,-313.65615021,0.00013698,2]
[333349486,1722066634406,-903.66,0.00013698,2]
[333349488,1722066634416,-425.03227629,0.00013698,2]
[333349490,1722066634426,-503.54,0.00013698,2]
[333349492,1722066634435,-500.0,0.00013698,2]
[333349494,1722066634446,-500.0,0.00013698,2]
[333349496,1722066634456,-503.69460144,0.00013698,2]
[333349498,1722066634466,-500.0,0.00013698,2]
[333349500,1722066634476,-500.0,0.00013698,2]
[333349502,1722066634485,-500.0,0.00013698,2]
[333349504,1722066634496,-503.21326724,0.00013698,2]
[333349506,1722066634506,-500.42106249,0.00013698,2]
[333349508,1722066634516,-500.0,0.00013698,2]
[333349510,1722066634526,-500.5349979,0.00013698,2]
[333349512,1722066634538,-500.0,0.00013698,2]
[333349514,1722066634549,-500.0,0.00013698,2]
[333349516,1722066634559,-500.0,0.00013698,2]
[333349518,1722066634571,-500.0,0.00013698,2]
[333349520,1722066634581,-411.39193765,0.00013698,2]
[333349523,1722066634599,-88.60806235,0.00013698,2]
[333349525,1722066634612,-500.0,0.00013698,2]
[333349527,1722066634622,-500.0,0.00013698,2]
[333349529,1722066634632,-500.0,0.00013698,2]
[333349531,1722066634642,-500.0,0.00013698,2]
[333349533,1722066634653,-500.0,0.00013698,2]
[333349535,1722066634662,-968.31,0.00013698,2]
[333349537,1722066634673,-260.98265739,0.00013698,2]
[333349539,1722066634683,-500.0,0.00013698,2]
[333349541,1722066634694,-342.52461219,0.00013698,2]
[333349543,1722066634703,-500.0,0.00013698,2]
[333349545,1722066634713,-500.0,0.00013698,2]
[333349547,1722066634723,-500.0,0.00013698,2]
[333349549,1722066634733,-500.0,0.00013698,2]
[333349551,1722066634743,-500.0,0.00013698,2]
[333349553,1722066634754,-500.0,0.00013698,2]
[333349555,1722066634764,-341.8453048,0.00013698,2]
[333349557,1722066634775,-500.0,0.00013698,2]
[333349559,1722066634787,-500.0,0.00013698,2]
[333349561,1722066634797,-563.58338137,0.00013698,2]
[333349563,1722066634807,-1125.9,0.00013698,2]
[333349564,1722066634816,-500.0,0.00013698,2]
[333349566,1722066634826,-500.0,0.00013698,2]
[333349569,1722066634837,-500.0,0.00013698,2]
[333349571,1722066634848,-500.0,0.00013698,2]
[333349573,1722066634860,-500.0,0.00013698,2]
[333349575,1722066634870,-500.0,0.00013698,2]
[333349577,1722066634881,-501.89485632,0.00013698,2]
[333349579,1722066634891,-500.0,0.00013698,2]
[333349581,1722066634900,-891.88,0.00013698,2]
[333349583,1722066634910,-506.13674432,0.00013698,2]
[333349585,1722066634919,-500.0,0.00013698,2]
[333349586,1722066634930,-500.0,0.00013698,2]
[333349587,1722066634943,-377.8228509,0.00013698,2]
[333349588,1722066634952,-500.0,0.00013698,2]
[333349589,1722066634962,-501.41004709,0.00013698,2]
[333349590,1722066634974,-500.0,0.00013698,2]
[333349591,1722066634986,-500.0,0.00013698,2]
[333349592,1722066634995,-500.0,0.00013698,2]
[333349593,1722066635005,-794.04,0.00013698,2]
[333349594,1722066635015,-500.0,0.00013698,2]
[333349595,1722066635026,-503.50938992,0.00013698,2]
[333349596,1722066635036,-1381.02,0.00013698,2]
[333349597,1722066635045,-500.0,0.00013698,2]
[333349598,1722066635055,-500.0,0.00013698,2]
[333349599,1722066635065,-500.0,0.00013698,2]
[333349600,1722066635075,-500.0,0.00013698,2]
[333349601,1722066635084,-500.0,0.00013698,2]
[333349602,1722066635094,-500.0,0.00013698,2]
[333349603,1722066635104,-500.0,0.00013698,2]
[333349604,1722066635113,-99.86723175,0.00013698,2]
[333350032,1722066639470,-400.13276825,0.00013698,2]
[333350034,1722066639479,-500.0,0.00013698,2]
[333350036,1722066639488,-500.0,0.00013698,2]
[333350038,1722066639498,-1268.84,0.00013698,2]
[333350039,1722066639507,-500.0,0.00013698,2]
[333350041,1722066639516,-500.0,0.00013698,2]
[333350043,1722066639525,-657.29,0.00013698,2]
[333350045,1722066639536,-500.0,0.00013698,2]
[333350047,1722066639545,-500.0,0.00013698,2]
[333350048,1722066639555,-500.0,0.00013698,2]
[333350050,1722066639564,-664.62,0.00013698,2]
[333350052,1722066639573,-500.0,0.00013698,2]
[333350054,1722066639582,-500.0,0.00013698,2]
[333350056,1722066639592,-500.0,0.00013698,2]
[333350058,1722066639601,-500.0,0.00013698,2]
[333350059,1722066639611,-515.37747525,0.00013698,2]
[333350061,1722066639621,-500.0,0.00013698,2]
[333350063,1722066639630,-500.0,0.00013698,2]
[333350065,1722066639639,-507.05657845,0.00013698,2]
[333350067,1722066639649,-500.0,0.00013698,2]
[333350069,1722066639658,-500.0,0.00013698,2]
[333350071,1722066639668,-521.2934289,0.00013698,2]
[333350073,1722066639678,-224.03452956,0.00013698,2]
[333350134,1722066640884,-275.96547044,0.00013698,2]
[333350136,1722066640894,-548.94976271,0.00013698,2]
[333350138,1722066640904,-539.28780059,0.00013698,2]
[333350140,1722066640914,-500.0,0.00013698,2]
[333350142,1722066640923,-583.74953854,0.00013698,2]
[333350143,1722066640934,-500.0,0.00013698,2]
[333350145,1722066640946,-500.0,0.00013698,2]
[333350147,1722066640955,-500.0,0.00013698,2]
[333350150,1722066640966,-571.97,0.00013698,2]
[333350152,1722066640976,-500.0,0.00013698,2]
[333350153,1722066640985,-500.0,0.00013698,2]
[333350155,1722066640994,-506.42035712,0.00013698,2]
[333350158,1722066641004,-500.0,0.00013698,2]
[333350160,1722066641014,-500.0,0.00013698,2]